Workbook

Sheet Лист1
K1: Приложение 1
J2: к постановлению администрации
K3: города Усолье-Сибирское
K4: от 26.12.2025 №2446-па
L6: Приложение 3
L7: к муниципальной программе города Усолье-Сибирское
L8: "Профилактика правонарушений" на 2019-2027 годы
A10: Ресурсное обеспечение реализации муниципальной программы города Усолье-Сибирское "Профилактика правонарушений" на 2019-2027 годы
A12: Наименование программы, подпрограммы, основного мероприятия | B12: Ответственный исполнитель Программы, соисполнители, участники, исполнители мероприятий | C12: Источник финансирования | D12: Общий объем финансирования, руб. | E12: Объем финансирования, руб.
E13: 2019 год | F13: 2020 год | G13: 2021 год | H13: 2022 год | I13: 2023 год | J13: 2024 год | K13: 2025 год | L13: 2026 год | M13: 2027 год
A15: 1 | B15: 2 | C15: 3 | D15: 4 | E15: 5 | F15: 6 | G15: 7 | H15: 8 | I15: 10 | J15: 11 | K15: 12 | L15: 13 | M15: 14
A16: Муниципальная программа города Усолье-Сибирское "Профилактика правонарушений" на 2019-2027 годы | B16: Консультант по правовоохранительной и оборонной работе администрации города | C16: Местный бюджет | D16: =SUM(E16:M16) -> 3,291,724.53 | E16: =E17+E24 -> 242,122.72 | F16: 105,872.72 | G16: 263,750.00 | H16: 294,690.00 | I16: 314,690.00 | J16: =J17+J24 -> 446,645.09 | K16: 694,574.00 | L16: =L17+L24 -> 464,690.00 | M16: 464,690.00
A17: Подпрограмма 1 "Профилактика правонарушений и укрепление общественного порядка и общественной безопасности" на 2019-2027 годы | B17: Консультант по правовоохранительной и оборонной работе администрации города | C17: Местный бюджет | D17: =SUM(E17:M17) -> 1,471,150.99 | E17: =E18+E19+E20+E21 -> 136,250.00 | F17: 0.00 | G17: 35,940.00 | H17: 77,440.00 | I17: =I18+I19+I20+I21+I22 -> 102,813.65 | J17: 234,517.74 | K17: =K18+K19+K20+K21+K22+K23 -> 379,309.60 | L17: =L18+L19+L20+L21+L22+L23 -> 252,440.00 | M17: =M18+M19+M20+M21+M22+M23 -> 252,440.00
A18: Основное мероприятие 1.1. Изготовление барьеров, ограничивающих движение граждан при проведении культурно-массовых и общественно-политических мероприятий | B18: Консультант по правовоохранительной и оборонной работе администрации город | C18: Местный бюджет | D18: =SUM(E18:M18,) -> 670,000.00 | E18: 70,000.00 | F18: 0.00 | G18: 0.00 | H18: 0.00 | I18: 0.00 | J18: 150,000.00 | K18: 150,000.00 | L18: 150,000.00 | M18: 150,000.00
A19: Основное мероприятие 1.2. Изготовление информационных продуктов о доступных мерах профилактики правонарушений | B19: Консультант по правовоохранительной и оборонной работе администрации города | C19: Местный бюджет | D19: 583,947.72 | E19: 0.00 | F19: 0.00 | G19: 30,940.00 | H19: 77,440.00 | I19: 77,249.72 | J19: 77,438.00 | K19: 166,000.00 | L19: 77,440.00 | M19: 77,440.00
A20: Основное мероприятие 1.3. Приобретение рамок металлодетекторов | B20: Консультант по правовоохранительной и оборонной работе администрации города | C20: Местный бюджет | D20: 61,250.00 | E20: 61,250.00 | F20: 0.00 | G20: 0.00 | H20: 0.00 | I20: 0.00 | J20: 0.00 | K20: 0.00 | L20: 0.00 | M20: 0.00
A21: Основное мероприятие 1.4. Страхование жизни и здоровья членов добровольной народной дружины | B21: Консультант по правовоохранительной и оборонной работе администрации города | C21: Местный бюджет | D21: 36,799.48 | E21: 5,000.00 | F21: 0.00 | G21: 5,000.00 | H21: 0.00 | I21: 4,899.74 | J21: 4,899.74 | K21: 7,000.00 | L21: 5,000.00 | M21: 5,000.00
A22: Основное мероприятие 1.5. Поощрение членов народных дружин, а также коллективов народных дружин, отличившихся в охране общественного порядка | B22: Консультант по правовоохранительной и оборонной работе администрации города | C22: Местный бюджет | D22: =SUM(E22:M22) -> 82,844.19 | E22: 0.00 | F22: 0.00 | G22: 0.00 | H22: 0.00 | I22: 20,664.19 | J22: 2,180.00 | K22: 20,000.00 | L22: 20,000.00 | M22: 20,000.00
A23: Основное мероприятие 1.6 Организация межведомственного взаимодействия по вопросам пробации. | B23: Консультант по правовоохранительной и оборонной работе администрации города Усольский межмуниципальный филиал ФКУ УИИ ГУФСИН России | C23: Местный бюджет | D23: =SUM(E23:M23) -> 36,309.60 | E23: 0.00 | F23: 0.00 | G23: 0.00 | H23: 0.00 | I23: 0.00 | J23: 0.00 | K23: 36,309.60 | L23: 0.00 | M23: 0.00
A24: Подпрограмма 2 "Профилактика безнадзорности и правонарушений несовершеннолетних" на 2019-2027 годы | B24: Отдел по обеспечению деятельности комиссии по делам несовершеннолетних и защите их прав управления по социально-культурным вопросам администрации города Усолье-Сибирское | C24: Местный бюджет | D24: =SUM(E24:M24,) -> 1,820,573.54 | E24: =E25+E26 -> 105,872.72 | F24: =F25+F26 -> 105,872.72 | G24: 227,810.00 | H24: 217,250.00 | I24: 211,876.35 | J24: =J25+J26 -> 212,127.35 | K24: =K25+K26 -> 315,264.40 | L24: =L25+L26 -> 212,250.00 | M24: 212,250.00
A25: Основное мероприятие 2.1. Организация занятости в весеннее, летнее каникулярное время на базе детских клубов по месту жительства для несовершеннолетних, состоящих на профилактических учетах, а также детей из семей, находящихся в социально опасном положении, в трудной жизненной ситуации | B25: Отдел по обеспечению деятельности комиссии по делам несовершеннолетних и защите их прав управления по социально-культурным вопросам администрации города Усолье-Сибирское | C25: Местный бюджет | D25: =SUM(E25:M25,) -> 1,251,613.18 | E25: 42,550.00 | F25: 42,550.00 | G25: 164,487.35 | H25: 153,927.35 | I25: 148,927.35 | J25: 148,927.35 | K25: =244764.4-4500+12124.68 -> 252,389.08 | L25: 148,927.35 | M25: 148,927.35
A26: Основное мероприятие 2.2. Организация профилактических мероприятий для несовершеннолетних, состоящих на профилактическом учете, а также детей из семей, находящихся в социально-опасном положении, в трудной жизненной ситуации | B26: Отдел по обеспечению деятельности комиссии по делам несовершеннолетних и защите их прав управления по социально-культурным вопросам администрации города Усолье-Сибирское | C26: Местный бюджет | D26: =SUM(E26:M26,) -> 568,960.36 | E26: 63,322.72 | F26: 63,322.72 | G26: 63,322.65 | H26: 63,322.65 | I26: 62,949.00 | J26: 63,200.00 | K26: 62,875.32 | L26: 63,322.65 | M26: 63,322.65
A28: Мэр города | E28: М.В. Торопкин
